fUSD/lending_fUSD_20250602
["ID","MTS","AMOUNT","RATE_DAILY","PERIOD"]
[363844258,1748896247428,-806.93,0.00027699,2]
[363844259,1748896247437,-532.43175677,0.00027699,10]
[363844260,1748896247447,-300.0,0.00027699,10]
[363844261,1748896247457,-151.0,0.00027699,7]
[363844262,1748896247467,-151.0,0.00027699,7]
[363844263,1748896247479,-151.0,0.00027699,7]
[363844264,1748896247489,-183.413195,0.00027699,7]
[363844265,1748896247498,-183.413195,0.00027699,7]
[363844266,1748896247508,-151.0,0.00027699,7]
[363844267,1748896247518,-280.43296,0.00027699,7]
[363844268,1748896247528,-280.43296,0.00027699,7]
[363844269,1748896247537,-25513.89463375,0.000277,7]
[363844270,1748896247550,-3000.0,0.000277,7]
[363844271,1748896247561,-2300.0,0.000277,7]
[363844272,1748896247572,-15359.3198734,0.000277,7]
[363844273,1748896247740,-1349.00850002,0.000277,7]
[363844274,1748896247758,-367.62170312,0.000277,7]
[363844275,1748896247769,-720.47905909,0.000277,7]
[363844276,1748896247780,-419.77238971,0.000277,7]
[363844277,1748896247791,-1656.58520388,0.000277,7]
[363844278,1748896247802,-3991.33602761,0.000277,7]
[363844279,1748896247817,-15524.62265495,0.000277,7]
[363844280,1748896247851,-2119.117,0.000277,7]
[363844281,1748896247863,-182678.20071266,0.000277,7]
[363844282,1748896247970,-15169.68224181,0.000277,7]
[363844283,1748896247980,-151.0,0.000277,7]
[363844284,1748896247990,-151.0,0.000277,7]
[363844285,1748896248000,-162.356194,0.000277,7]
[363844286,1748896248009,-162.356194,0.000277,7]
[363844287,1748896248019,-721.727568,0.000277,7]
[363844288,1748896248028,-721.727568,0.000277,7]
[363844289,1748896248038,-721.727568,0.000277,7]
[363844290,1748896248047,-721.727568,0.000277,7]
[363844291,1748896248057,-151.0,0.000277,7]
[363844292,1748896248066,-207.461919,0.000277,7]
[363844293,1748896248075,-183.413195,0.000277,7]
[363844294,1748896248085,-183.413195,0.000277,7]
[363844295,1748896248095,-151.0,0.000277,7]
[363844296,1748896248104,-280.43296,0.000277,7]
[363844297,1748896248114,-280.43296,0.000277,7]
[363844298,1748896248123,-151.0,0.000277,7]
[363844299,1748896248133,-151.0,0.000277,7]
[363844300,1748896248142,-243.174419,0.000277,7]
[363844301,1748896248151,-243.174419,0.000277,7]
[363844302,1748896248161,-151.0,0.000277,7]
[363844303,1748896248171,-151.0,0.000277,7]
[363844304,1748896248182,-151.0,0.000277,7]
[363844305,1748896248191,-161.565653,0.000277,7]
[363844306,1748896248201,-161.565653,0.000277,7]
[363844307,1748896248210,-151.0,0.000277,7]
[363844308,1748896248220,-151.0,0.000277,7]
[363844309,1748896248230,-151.0,0.000277,7]
[363844310,1748896248240,-151.0,0.000277,7]
[363844311,1748896248249,-151.0,0.000277,7]
[363844312,1748896248259,-151.0,0.000277,7]
[363844313,1748896248268,-151.0,0.000277,7]
[363844314,1748896248278,-183.924215,0.000277,7]
[363844315,1748896248288,-183.924215,0.000277,7]
[363844316,1748896248297,-274.527172,0.000277,7]
[363844317,1748896248307,-274.527172,0.000277,7]
[363844318,1748896248316,-151.0,0.000277,7]
[363844319,1748896248325,-1255.970937,0.000277,7]
[363844320,1748896248335,-151.0,0.000277,7]
[363844321,1748896248344,-560.834385,0.000277,7]
[363844322,1748896248353,-484.618963,0.000277,7]
[363844323,1748896248363,-178.13015894,0.000277,7]
[363844324,1748896248375,-382.70422606,0.000277,7]
[363844325,1748896248384,-484.618963,0.000277,7]
[363844326,1748896248394,-613.528054,0.000277,7]
[363844327,1748896248403,-151.0,0.000277,7]
[363844328,1748896248412,-613.528054,0.000277,7]
[363844329,1748896248421,-151.0,0.000277,7]
[363844330,1748896248431,-151.0,0.000277,7]
[363844331,1748896248440,-219.285236,0.000277,7]
[363844332,1748896248449,-151.0,0.000277,7]
[363844333,1748896248458,-151.0,0.000277,7]
[363844334,1748896248468,-151.0,0.000277,7]
[363844335,1748896248478,-5771.213658,0.000277,7]
[363844336,1748896248487,-5771.213658,0.000277,7]
[363844337,1748896248496,-151.0,0.000277,7]
[363844338,1748896248506,-151.0,0.000277,7]
[363844339,1748896248515,-151.0,0.000277,7]
[363844340,1748896248525,-607.114681,0.000277,7]
[363844341,1748896248534,-607.114681,0.000277,7]
[363844342,1748896248544,-151.0,0.000277,7]
[363844343,1748896248554,-182.884633,0.000277,7]
[363844344,1748896248564,-182.884633,0.000277,7]
[363844345,1748896248573,-151.0,0.000277,7]
[363844346,1748896248582,-151.0,0.000277,7]
[363844347,1748896248592,-267.203969,0.000277,7]
[363844348,1748896248601,-155.104476,0.000277,7]
[363844349,1748896248610,-155.104476,0.000277,7]
[363844350,1748896248620,-151.0,0.000277,7]
[363844351,1748896248630,-151.0,0.000277,7]
[363844352,1748896248639,-164.4977,0.000277,7]
[363844353,1748896248649,-164.4977,0.000277,7]
[363844354,1748896248658,-164.4977,0.000277,7]
[363844355,1748896248667,-164.4977,0.000277,7]
[363844356,1748896248677,-243.892868,0.000277,7]
[363844357,1748896248686,-243.892868,0.000277,7]
[363844358,1748896248696,-243.892868,0.000277,7]
[363844359,1748896248705,-243.892868,0.000277,7]
[363844360,1748896248714,-151.0,0.000277,7]
[363844361,1748896248723,-151.0,0.000277,7]
[363844362,1748896248733,-151.0,0.000277,7]
[363844363,1748896248742,-151.0,0.000277,7]
[363844364,1748896248752,-213.348743,0.000277,7]
[363844365,1748896248761,-213.348743,0.000277,7]
[363844366,1748896248770,-213.348743,0.000277,7]
[363844367,1748896248779,-213.348743,0.000277,7]
[363844368,1748896248789,-151.0,0.000277,7]
[363844369,1748896248798,-151.0,0.000277,7]
[363844370,1748896248811,-12516.14426738,0.00027777,2]
[363844371,1748896248820,-1000.0,0.000278,2]
[363844372,1748896248829,-3200.3905548,0.00027814,2]
[363844373,1748896248839,-600.22501597,0.00027816,14]
[363844374,1748896248850,-391.0,0.0002783,15]
[363844375,1748896248859,-500.0,0.00027875,2]
[363844376,1748896248868,-2400.0,0.000279,10]
[363844377,1748896248877,-16791.6991131,0.00027913,2]
[363844378,1748896248888,-500.0,0.00027923,2]
[363844379,1748896248898,-645.17,0.00027924,2]
[363844380,1748896248908,-420.0,0.00027945,2]
[363844381,1748896248918,-420.0,0.00027945,2]
[363844382,1748896248927,-429.80630076,0.00027945,2]
[363844383,1748896248936,-1228.7,0.00027945,3]
[363844384,1748896248946,-151.0,0.00027962,7]
[363844385,1748896248955,-151.0,0.00027962,7]
[363844386,1748896248964,-1232.286766,0.00027962,7]
[363844387,1748896248974,-1232.286766,0.00027962,7]
[363844388,1748896248983,-403.54305355,0.00027979,10]
[363844389,1748896248992,-151.0,0.0002798,7]
[363844390,1748896249001,-151.0,0.00027981,7]
[363844391,1748896249011,-500.0,0.00027997,2]
[363844392,1748896249020,-278.39,0.00028,2]
[363844393,1748896249029,-150.0,0.00028,2]
[363844394,1748896249039,-1000.0,0.00028,2]
[363844395,1748896249048,-900.0,0.00028,2]
[363844396,1748896249058,-12579.83900598,0.00028,2]
[363844397,1748896249067,-251.59678012,0.00028,2]
[363844398,1748896249077,-151.0,0.00028,7]
[363844399,1748896249086,-255.66715209,0.00028,2]
[363844400,1748896249095,-2527.427705,0.00028,2]
[363844401,1748896249105,-1800.0,0.00028,29]
[363844402,1748896249114,-168.3888056,0.00028093,2]
[363844403,1748896249123,-458.5,0.000281,31]
[363844404,1748896249132,-458.5,0.000281,31]
[363844405,1748896249142,-458.5,0.000281,31]
[363844406,1748896249151,-458.5,0.000281,31]
[363844407,1748896249160,-458.5,0.000281,31]
[363844408,1748896249169,-458.5,0.000281,31]
[363844409,1748896249179,-458.5,0.000281,31]
[363844410,1748896249188,-458.5,0.000281,31]
[363844411,1748896249197,-458.5,0.000281,31]
[363844412,1748896249207,-458.5,0.000281,31]
[363844413,1748896249216,-458.5,0.000281,31]
[363844414,1748896249226,-458.5,0.000281,31]
[363844415,1748896249235,-458.5,0.000281,31]
[363844416,1748896249244,-458.5,0.000281,31]
[363844417,1748896249254,-458.5,0.000281,31]
[363844418,1748896249263,-458.5,0.000281,31]
[363844419,1748896249272,-458.5,0.000281,31]
[363844420,1748896249282,-458.5,0.000281,31]
[363844421,1748896249291,-458.5,0.000281,31]
[363844422,1748896249301,-458.5,0.000281,31]
[363844423,1748896249311,-458.5,0.000281,31]
[363844424,1748896249320,-458.5,0.000281,31]
[363844425,1748896249330,-458.5,0.000281,31]
[363844426,1748896249340,-458.5,0.000281,31]
[363844427,1748896249349,-150.0,0.00028118,2]
[363844428,1748896249359,-3200.3905548,0.00028131,2]
[363844429,1748896249369,-152.0,0.00028132,8]
[363844430,1748896249379,-413.36,0.00028169,2]
[363844431,1748896249389,-700.0,0.00028182,7]
[363844432,1748896249398,-151.0,0.000282,7]
[363844433,1748896249408,-151.0,0.000282,7]
[363844434,1748896249417,-1232.286766,0.000282,7]
[363844435,1748896249426,-1232.286766,0.000282,7]
[363844436,1748896249436,-420.0,0.00028219,2]
[363844437,1748896249446,-420.0,0.00028219,2]
[363844438,1748896249455,-1000.0,0.00028221,5]
[363844439,1748896249465,-1000.0,0.00028221,5]
[363844440,1748896249475,-952.79310382,0.00028221,5]
[363844441,1748896249485,-500.0,0.00028221,5]
[363844442,1748896249494,-500.0,0.00028221,5]
[363844443,1748896249504,-1000.0,0.00028221,5]
[363844444,1748896249513,-1000.0,0.00028221,5]
[363844445,1748896249523,-866.27683297,0.000283,2]
[363844446,1748896249533,-239.84119403,0.00028325,2]
[363844447,1748896249543,-16791.6991131,0.00028328,2]
[363844448,1748896249552,-500.0,0.00028424,2]
[363844449,1748896249572,-3200.3905548,0.00028448,2]
[363844450,1748896249583,-420.0,0.00028493,2]
[363844451,1748896249593,-420.0,0.00028493,2]
[363844452,1748896249603,-609.142235,0.00028493,7]
[363844453,1748896249613,-609.142235,0.00028493,7]
[363844454,1748896249623,-151.0,0.00028493,7]
[363844455,1748896249634,-1228.7,0.00028493,4]
[363844456,1748896249643,-1500.0,0.000285,2]
[363844457,1748896249653,-500.0,0.00028573,5]
[363844458,1748896249825,-160.36532622,0.00028573,2]
[363844459,1748896249835,-500.0,0.00028573,5]
[363844460,1748896249845,-300.0,0.00028599,10]
[363844461,1748896249855,-300.0,0.00028599,10]
[363844462,1748896249864,-5790.9107656,0.000286,7]
[363844463,1748896249877,-499.58214964,0.000286,7]
[363844464,1748896249888,-420.0,0.000286,7]
[363844465,1748896249900,-16700.73166888,0.000286,7]
[363844466,1748896249911,-1410.2520895,0.000286,7]
[363844467,1748896249931,-10574.0,0.000286,7]
[363844468,1748896249946,-253.96,0.000286,7]
[363844469,1748896250359,-299.0,0.00023999,2]
[363844470,1748896250368,-825.05551,0.000286,7]
[363844471,1748896250379,-12917.9828306,0.000286,7]
[363844472,1748896250391,-951.75,0.000286,7]
[363844473,1748896250402,-634.28002656,0.000286,7]
[363844474,1748896250413,-682.07017237,0.000286,7]
[363844475,1748896250423,-1176.2376747,0.000286,7]
[363844476,1748896250440,-66657.64910273,0.000286,7]
[363844477,1748896250453,-25186.3396482,0.000286,7]
[363844478,1748896250477,-357.551293,0.000286,7]
[363844479,1748896250493,-4686.43454404,0.000286,7]
[363844480,1748896250504,-650.38390042,0.000286,7]
[363844481,1748896250515,-8389.66391844,0.000286,7]
[363844482,1748896250527,-1059.8588,0.000286,7]
[363844483,1748896251182,-1000.0,0.00026323,2]
[363844484,1748896251192,-1000.0,0.00026352,7]
[363844485,1748896251201,-1000.0,0.00026352,7]
[363844486,1748896251210,-1613.98,0.00026648,2]
[363844487,1748896251228,-6332.64469046,0.000286,7]
[363844488,1748896251336,-4647.91873068,0.000286,7]
[363844489,1748896251349,-886.72,0.000286,7]
[363844490,1748896251360,-1587.03359657,0.000286,7]
[363844491,1748896251371,-3917.28949155,0.000286,7]
[363844492,1748896251383,-36187.688563,0.000286,7]
[363844493,1748896251398,-3524.1353724,0.000286,7]
[363844494,1748896251501,-1157.0,0.00023327,2]
[363844495,1748896251511,-53261.51546066,0.000286,7]
[363844496,1748896251521,-151.0,0.000286,7]
[363844497,1748896251532,-151.0,0.000286,7]
[363844498,1748896251542,-151.0,0.000286,7]
[363844499,1748896251551,-162.356194,0.000286,7]
[363844500,1748896251561,-162.356194,0.000286,7]
[363844501,1748896251572,-721.727568,0.000286,7]
[363844502,1748896251581,-721.72757489,0.000286,7]
[363844503,1748896251591,-151.0,0.000286,7]
[363844504,1748896251601,-183.413195,0.000286,7]
[363844505,1748896251610,-183.413189,0.000286,7]
[363844506,1748896251756,-151.0,0.000286,7]
[363844507,1748896251767,-280.43296,0.000286,7]
[363844508,1748896251777,-280.432964,0.000286,7]
[363844509,1748896251787,-161.695995,0.000286,7]
[363844510,1748896251797,-151.0,0.000286,7]
[363844511,1748896251810,-243.174419,0.000286,7]
[363844512,1748896251819,-243.174419,0.000286,7]
[363844513,1748896251829,-243.174419,0.000286,7]
[363844514,1748896251839,-243.174427,0.000286,7]
[363844515,1748896251849,-151.0,0.000286,7]
[363844516,1748896251859,-151.0,0.000286,7]
[363844517,1748896251869,-151.0,0.000286,7]
[363844518,1748896251879,-161.565653,0.000286,7]
[363844519,1748896251889,-161.565653,0.000286,7]
[363844520,1748896251902,-151.0,0.000286,7]
[363844521,1748896251912,-151.0,0.000286,7]
[363844522,1748896251921,-151.0,0.000286,7]
[363844523,1748896251931,-151.0,0.000286,7]
[363844524,1748896251939,-151.0,0.000286,7]
[363844525,1748896251949,-151.0,0.000286,7]
[363844526,1748896251958,-151.0,0.000286,7]
[363844527,1748896251972,-183.924215,0.000286,7]
[363844528,1748896251981,-1500.0,0.000286,28]
[363844529,1748896251991,-1500.0,0.000286,28]
[363844530,1748896252001,-609.142235,0.000286,7]
[363844531,1748896252011,-1500.0,0.000286,28]
[363844532,1748896252021,-1500.0,0.000286,28]
[363844533,1748896252030,-1500.0,0.000286,28]
[363844534,1748896252040,-1500.0,0.000286,28]
[363844535,1748896252050,-1500.0,0.000286,28]
[363844536,1748896252059,-183.924215,0.000286,7]
[363844537,1748896252069,-1500.0,0.000286,28]
[363844538,1748896252078,-1500.0,0.000286,28]
[363844539,1748896252088,-1500.0,0.000286,28]
[363844540,1748896252097,-1500.0,0.000286,28]
[363844541,1748896252107,-1500.0,0.000286,28]
[363844542,1748896252116,-609.142235,0.000286,7]
[363844543,1748896252125,-1500.0,0.000286,28]
[363844544,1748896252135,-1500.0,0.000286,28]
[363844545,1748896252143,-1500.0,0.000286,28]
[363844546,1748896252149,-1500.0,0.000286,28]
[363844547,1748896252156,-1500.0,0.000286,28]
[363844548,1748896252164,-1500.0,0.000286,28]
[363844549,1748896252174,-1500.0,0.000286,28]
[363844550,1748896252184,-1500.0,0.000286,28]
[363844551,1748896252194,-1500.0,0.000286,28]
[363844552,1748896252203,-1500.0,0.000286,28]
[363844553,1748896252213,-516.69753,0.000286,28]
[363844554,1748896252226,-274.527172,0.000286,7]
[363844555,1748896252236,-274.527172,0.000286,7]
[363844556,1748896252246,-151.0,0.000286,7]
[363844557,1748896252256,-1255.970937,0.000286,7]
[363844558,1748896252265,-560.834385,0.000286,7]
[363844559,1748896252275,-484.618963,0.000286,7]
[363844560,1748896252285,-560.834385,0.000286,7]
[363844561,1748896252294,-484.618963,0.000286,7]
[363844562,1748896252304,-613.528054,0.000286,7]
[363844563,1748896252314,-151.0,0.000286,7]
[363844564,1748896252324,-613.528054,0.000286,7]
[363844565,1748896252334,-151.0,0.000286,7]
[363844566,1748896252344,-151.0,0.000286,7]
[363844567,1748896252354,-151.0,0.000286,7]
[363844568,1748896252364,-151.0,0.000286,7]
[363844569,1748896252374,-5771.213658,0.000286,7]
[363844570,1748896252384,-5771.213658,0.000286,7]
[363844571,1748896252395,-151.0,0.000286,7]
[363844572,1748896252405,-151.0,0.000286,7]
[363844573,1748896252415,-151.0,0.000286,7]
[363844574,1748896252425,-151.0,0.000286,7]
[363844575,1748896252435,-607.114681,0.000286,7]
[363844576,1748896252445,-607.114681,0.000286,7]
[363844577,1748896252455,-151.0,0.000286,7]
[363844578,1748896252465,-151.0,0.000286,7]
[363844579,1748896252477,-182.884633,0.000286,7]
[363844580,1748896252487,-182.884633,0.000286,7]
[363844581,1748896252497,-182.884633,0.000286,7]
[363844582,1748896252507,-182.884633,0.000286,7]
[363844583,1748896252517,-155.104476,0.000286,7]
[363844584,1748896252527,-155.104476,0.000286,7]
[363844585,1748896252537,-155.104476,0.000286,7]
[363844586,1748896252546,-155.104476,0.000286,7]
[363844587,1748896252556,-164.4977,0.000286,7]
[363844588,1748896252566,-164.4977,0.000286,7]
[363844589,1748896252576,-243.892868,0.000286,7]
[363844590,1748896252586,-243.892868,0.000286,7]
[363844591,1748896252595,-151.0,0.000286,7]
[363844592,1748896252605,-235.894135,0.000286,7]
[363844593,1748896252615,-213.348743,0.000286,7]
[363844594,1748896252625,-213.348743,0.000286,7]
[363844595,1748896252635,-151.0,0.000286,7]
[363844596,1748896252644,-354.01,0.00028603,2]
[363844597,1748896252655,-460.33,0.00028603,2]
[363844598,1748896252664,-12516.14426738,0.00028658,2]
[363844599,1748896252674,-152.0,0.00028732,9]
[363844600,1748896252683,-191.65513881,0.00028742,2]
[363844601,1748896252696,-1048.1033486,0.00028742,2]
[363844602,1748896252708,-1237.31323416,0.00028742,2]
[363844603,1748896252721,-648.85139943,0.00028742,2]
[363844604,1748896252732,-2798.57179996,0.00028742,2]
[363844605,1748896252748,-473.66435226,0.00028742,2]
[363844606,1748896252759,-10393.53983988,0.00028742,2]
[363844607,1748896252769,-566.0,0.00028756,14]
[363844608,1748896252778,-500.0,0.00028756,2]
[363844609,1748896252788,-3200.3905548,0.00028766,2]
[363844610,1748896252798,-420.0,0.00028767,2]
[363844611,1748896252812,-420.0,0.00028767,2]
[363844612,1748896252822,-7939.12534829,0.00028767,2]
[363844613,1748896385949,151.67,0.00013699,2]
[363844615,1748896588959,286.60573916,0.000398,120]
[363844616,1748896890398,150.0,0.00039773,120]
[363844618,1748897191857,150.0,0.00039779,120]
[363844619,1748897218136,1987.0,0.00039779,120]
[363844629,1748897432031,-460.0,0.0002,2]
[363844630,1748897432041,-151.0,0.00020616,2]
[363844631,1748897432051,-260.8582151,0.00020616,2]
[363844632,1748897432061,-400.0,0.00021267,2]
[363844633,1748897432071,-151.67,0.00021918,2]
[363844634,1748897432081,-179.69,0.00022211,2]
[363844635,1748897432091,-400.0,0.00022677,2]
[363844636,1748897432100,-197.2517609,0.00023,2]
[363844637,1748897432112,-976.7382391,0.00023,2]
[363844638,1748897432122,-625.79,0.00023172,2]
[363844639,1748897432134,-850.0,0.00023696,2]
[363844640,1748897432144,-637.91992919,0.00023696,2]
[363844641,1748897432155,-396.21709808,0.00023696,2]
[363844642,1748897432179,-165.86297273,0.00023696,2]
[363844643,1748897432190,-151.0,0.00023697,2]
[363844644,1748897432199,-151.0,0.00023697,2]
[363844645,1748897432210,-500.0,0.00023697,2]
[363844646,1748897432220,-500.0,0.00023697,2]
[363844647,1748897432230,-500.0,0.00023697,2]
[363844648,1748897432239,-1115.157653,0.00023697,2]
[363844649,1748897432250,-500.0,0.00023697,2]
[363844650,1748897432260,-500.0,0.00023697,2]
[363844651,1748897432270,-500.0,0.00023697,2]
[363844652,1748897432279,-500.0,0.00023697,2]
[363844653,1748897432293,-207.4,0.00023697,2]
[363844654,1748897432304,-280.0,0.00023697,2]
[363844655,1748897432314,-151.0,0.00023697,2]
[363844656,1748897432324,-300.0,0.00023697,2]
[363844657,1748897432333,-300.0,0.00023697,2]
[363844658,1748897432343,-300.0,0.00023697,2]
[363844659,1748897432352,-300.0,0.00023697,2]
[363844660,1748897432362,-300.0,0.00023697,2]
[363844662,1748897432371,-310.03598511,0.00023697,2]
[363844664,1748897432381,-301.98,0.00023706,2]
[363844666,1748897432391,-300.0,0.0002371,2]
[363844667,1748897432401,-801.0,0.00023739,2]
[363844668,1748897432410,-604.88553234,0.00023739,2]
[363844669,1748897432422,-648.11446766,0.00023739,2]
[363844670,1748897432431,-155.0,0.00023739,2]
[363844671,1748897432442,-1157.0,0.00023739,2]
[363844672,1748897432452,-820.12,0.00023836,2]
[363844673,1748897432462,-303.05,0.0002384,2]
[363844674,1748897432471,-301.66,0.0002384,2]
[363844675,1748897432481,-40.15553214,0.0002384,2]
[363844676,1748897432492,-263.90446786,0.0002384,2]
[363844677,1748897432502,-305.82,0.0002384,2]
[363844678,1748897432513,-304.95,0.00024206,2]
[363844679,1748897432523,-300.23,0.00024206,2]
[363844681,1748897432532,-305.88,0.00024206,2]
[363844683,1748897432541,-1591.0,0.00024271,2]
[363844685,1748897432552,-500.0,0.00024352,2]
[363844687,1748897432561,-500.0,0.00024386,2]
[363844689,1748897432570,-500.0,0.0002439,2]
[363844691,1748897432580,-500.0,0.00024667,2]
[363844693,1748897432589,-347.45553214,0.000249,12]
[363844695,1748897432601,-3712.41543643,0.000249,12]
[363844697,1748897432610,-3647.15,0.00024902,2]
[363844699,1748897432619,-500.0,0.00024931,7]
[363844701,1748897432629,-500.0,0.00024952,2]
[363844703,1748897432638,-976.97,0.00024969,2]
[363844705,1748897432648,-803.21857211,0.00025,7]
[363844707,1748897432659,-2277.1,0.00025,7]
[363844709,1748897432671,-199.15519268,0.00025,7]
[363844711,1748897432680,-1179.43,0.00025052,2]
[363844713,1748897432691,-1443.24,0.00025059,30]
[363844716,1748897432700,-1000.0,0.00025062,2]
[363844719,1748897432710,-156.587,0.00025066,2]
[363844722,1748897432721,-215.0738,0.00025066,2]
[363844725,1748897432731,-167.67,0.0002509,120]
[363844729,1748897432741,-500.0,0.00025095,2]
[363844732,1748897432750,-600.52,0.00025114,2]
[363844734,1748897432760,-500.0,0.0002513,2]
[363844736,1748897432769,-500.0,0.00025148,2]
[363844738,1748897432778,-800.0,0.00025218,2]
[363844740,1748897432787,-2080.34,0.00025258,2]
[363844742,1748897432796,-1000.0,0.00025348,2]
[363844744,1748897432805,-2485.43791704,0.00025424,2]
[363844746,1748897432814,-124.20856812,0.00025424,2]
[363844749,1748897432833,-75.79143188,0.00025424,2]
[363844751,1748897432842,-204.0,0.00025434,2]
[363844753,1748897432852,-625.79,0.00025436,2]
[363844755,1748897432862,-232.90251019,0.00025462,2]
[363844757,1748897432874,-3127.21748981,0.00025462,2]
[363844759,1748897432883,-500.0,0.00025488,2]
[363844761,1748897432893,-5642.34137384,0.0002554,2]
[363844763,1748897432905,-1868.03384965,0.0002554,2]
[363844766,1748897432916,-562.76417773,0.0002554,2]
[363844768,1748897432928,-3683.3671,0.0002554,2]
[363844770,1748897432940,-1109.4922,0.0002554,2]
[363844772,1748897432951,-6016.89129878,0.0002554,2]
[363844775,1748897432963,-166.0,0.00025572,2]
[363844776,1748897432973,-167.48,0.00025574,2]
[363844778,1748897432983,-200.0,0.00025604,2]
[363844780,1748897432992,-498.44387769,0.0002565,2]
[363844782,1748897433002,-500.0,0.00025667,2]
[363844784,1748897433011,-500.0,0.00025667,2]
[363844786,1748897433021,-525.94689643,0.00025667,2]
[363844788,1748897433031,-800.0,0.0002571,2]
[363844790,1748897433041,-500.0,0.00025753,7]
[363844792,1748897433051,-500.0,0.00025779,2]
[363844806,1748897433191,-150.0,0.00025818,2]
[363844808,1748897433201,-1200.0,0.00025823,2]
[363844810,1748897433214,-800.0,0.00025871,2]
[363844812,1748897433223,-500.0,0.00025972,2]
[363844814,1748897433232,-500.0,0.00026075,2]
[363844816,1748897433242,-540.14076118,0.00026083,2]
[363844818,1748897433252,-500.0,0.000261,2]
[363844820,1748897433262,-500.0,0.00026121,2]
[363844822,1748897433271,-500.0,0.00026157,2]
[363844824,1748897433281,-272.44,0.000264,31]
[363844826,1748897433291,-272.44,0.000264,31]
[363844827,1748897433301,-272.44,0.000264,31]
[363844829,1748897433311,-272.44,0.000264,31]
[363844831,1748897433320,-272.44,0.000264,31]
[363844833,1748897433329,-272.44,0.000264,31]
[363844835,1748897433339,-272.44,0.000264,31]
[363844837,1748897433349,-272.44,0.000264,31]
[363844839,1748897433358,-272.44,0.000264,31]
[363844841,1748897433367,-272.44,0.000264,31]
[363844843,1748897433378,-272.44,0.000264,31]
[363844845,1748897433387,-272.44,0.000264,31]
[363844847,1748897433397,-272.44,0.000264,31]
[363844849,1748897433406,-272.44,0.000264,31]
[363844851,1748897433416,-272.44,0.000264,31]
[363844853,1748897433425,-272.44,0.000264,31]
[363844855,1748897433436,-500.0,0.00026402,2]
[363844857,1748897433446,-159.24,0.00026429,2]
[363844859,1748897433456,-162.380719,0.00026435,2]
[363844861,1748897433465,-223.0315306,0.00026435,2]
[363844863,1748897433476,-500.0,0.00026575,7]
[363844865,1748897433485,-1025.07147938,0.00026607,2]
[363844867,1748897433495,-303.83,0.00026615,2]
[363844869,1748897433505,-500.0,0.00026677,2]
[363844871,1748897433515,-767.0,0.000267,2]
[363844873,1748897433524,-237.0,0.000267,2]
[363844875,1748897433534,-375.0,0.000267,2]
[363844877,1748897433544,-1253.0,0.00026739,2]
[363844879,1748897433553,-155.0,0.00026739,2]
[363844881,1748897433564,-1157.0,0.00026739,2]
[363844883,1748897433574,-151.0,0.0002678,7]